fUST/lending_fUST_20250831
["ID","MTS","AMOUNT","RATE_DAILY","PERIOD"]
[382465926,1756637441397,-480.0,0.00017831,2]
[382465928,1756637441407,-480.0,0.00017831,2]
[382465930,1756637441416,-1891.34,0.00017831,2]
[382465932,1756637441425,-480.0,0.00017831,2]
[382465934,1756637441435,-885.43,0.00017831,2]
[382465936,1756637441444,-508.34,0.00017831,2]
[382465937,1756637441454,-953.97,0.00017831,2]
[382465939,1756637441463,-481.78518685,0.00017831,2]
[382465941,1756637441472,-410.49221079,0.00017831,2]
[382465943,1756637441482,-580.59,0.00017831,2]
[382465945,1756637441492,-562.31,0.00017831,2]
[382465947,1756637441502,-1795.79,0.00017831,2]
[382465949,1756637441511,-1082.72,0.00017831,2]
[382465951,1756637441521,-573.71,0.00017831,2]
[382465953,1756637441531,-815.57,0.00017831,2]
[382465955,1756637441539,-1000.0,0.00017831,2]
[382465957,1756637441549,-906.98,0.00017831,2]
[382465959,1756637441562,-480.0,0.00017831,2]
[382465961,1756637441571,-510.7510522,0.00017831,2]
[382465963,1756637441580,-677.0,0.00017831,2]
[382465965,1756637441589,-864.76,0.00017831,2]
[382465967,1756637441602,-925.44,0.00017831,2]
[382465969,1756637441611,-480.0,0.00017831,2]
[382465971,1756637441621,-756.57,0.00017831,2]
[382465973,1756637441633,-480.0,0.00017831,2]
[382465975,1756637441643,-532.18,0.00017831,2]
[382465977,1756637441652,-1247.1,0.00017831,2]
[382465979,1756637441662,-1791.67,0.00017831,2]
[382465981,1756637441671,-541.68,0.00017831,2]
[382465983,1756637441680,-253.75978591,0.00017831,2]
[382465985,1756637441689,-480.0,0.00017831,2]
[382465987,1756637441699,-480.0,0.00017831,2]
[382465989,1756637441708,-2285.8,0.00017831,2]
[382465991,1756637441717,-480.0,0.00017831,2]
[382465993,1756637441726,-2064.03,0.00017831,2]
[382465995,1756637441735,-480.0,0.00017831,2]
[382465997,1756637441744,-480.0,0.00017831,2]
[382465999,1756637441753,-480.0,0.00017831,2]
[382466001,1756637441762,-544.86,0.00017831,2]
[382466003,1756637441771,-480.0,0.00017831,2]
[382466005,1756637441780,-480.0,0.00017831,2]
[382466007,1756637441789,-480.0,0.00017831,2]
[382466008,1756637441799,-480.0,0.00017831,2]
[382466010,1756637441808,-1797.44,0.00017831,2]
[382466012,1756637441818,-480.0,0.00017831,2]
[382466014,1756637441827,-260.86270022,0.00017831,2]
[382466016,1756637441838,-483.94,0.00017831,2]
[382466018,1756637441847,-1506.67,0.00017831,2]
[382466020,1756637441856,-638.9,0.00017831,2]
[382466022,1756637441866,-1527.07,0.00017831,2]
[382466024,1756637441875,-480.0,0.00017831,2]
[382466026,1756637441884,-700.58,0.00017831,2]
[382466028,1756637441894,-7304.07,0.00017831,2]
[382466030,1756637441903,-770.34,0.00017831,2]
[382466032,1756637441912,-759.74,0.00017831,2]
[382466034,1756637441922,-4415.94,0.00017831,2]
[382466036,1756637441931,-868.26,0.00017831,2]
[382466038,1756637441941,-480.0,0.00017831,2]
[382466040,1756637441950,-480.0,0.00017831,2]
[382466042,1756637441960,-703.32,0.00017831,2]
[382466044,1756637441969,-837.59,0.00017831,2]
[382466046,1756637441979,-480.0,0.00017831,2]
[382466048,1756637441989,-3548.37,0.00017831,2]
[382466050,1756637442000,-480.0,0.00017831,2]
[382466052,1756637442009,-12367.96,0.00017831,2]
[382466054,1756637442019,-480.0,0.00017831,2]
[382466056,1756637442028,-6577.48,0.00017831,2]
[382466058,1756637442038,-1119.31,0.00017831,2]
[382466060,1756637442048,-480.0,0.00017831,2]
[382466062,1756637442058,-706.33,0.00017831,2]
[382466064,1756637442069,-2778.09,0.00017831,2]
[382466066,1756637442079,-480.0,0.00017831,2]
[382466068,1756637442088,-1302.06,0.00017831,2]
[382466070,1756637442097,-697.46,0.00017831,2]
[382466072,1756637442106,-1551.5,0.00017831,2]
[382466074,1756637442115,-1665.01,0.00017831,2]
[382466076,1756637442124,-350.36287307,0.00017831,2]
[382466078,1756637442133,-480.0,0.00017831,2]
[382466080,1756637442143,-480.0,0.00017831,2]
[382466082,1756637442151,-2655.01,0.00017831,2]
[382466084,1756637442161,-1958.83,0.00017831,2]
[382466086,1756637442170,-1802.94,0.00017831,2]
[382466088,1756637442178,-1411.76,0.00017831,2]
[382466090,1756637442188,-480.0,0.00017831,2]
[382466092,1756637442197,-1565.55,0.00017831,2]
[382466094,1756637442206,-489.27,0.00017831,2]
[382466096,1756637442215,-297.60048262,0.00017831,2]
[382466098,1756637442224,-891.59,0.00017831,2]
[382466100,1756637442233,-480.0,0.00017831,2]
[382466102,1756637442242,-480.0,0.00017831,2]
[382466104,1756637442251,-531.59,0.00017831,2]
[382466106,1756637442259,-845.44,0.00017831,2]
[382466108,1756637442268,-684.59,0.00017831,2]
[382466110,1756637442278,-480.0,0.00017831,2]
[382466112,1756637442287,-572.76,0.00017831,2]
[382466114,1756637442295,-1776.4,0.00017831,2]
[382466116,1756637442304,-2065.23,0.00017831,2]
[382466118,1756637442313,-923.49,0.00017831,2]
[382466120,1756637442323,-2532.47,0.00017831,2]
[382466122,1756637442339,-480.0,0.00017831,2]
[382466124,1756637442348,-481.3470306,0.00017831,2]
[382466125,1756637442357,-1014.96,0.00017831,2]
[382466127,1756637442366,-480.0,0.00017831,2]
[382466129,1756637442375,-480.0,0.00017831,2]
[382466131,1756637442385,-1046.77,0.00017831,2]
[382466133,1756637442394,-480.0,0.00017831,2]
[382466135,1756637442405,-480.0,0.00017831,2]
[382466137,1756637442414,-8960.94,0.00017831,2]
[382466139,1756637442423,-9400.33,0.00017831,2]
[382466141,1756637442432,-774.2,0.00017831,2]
[382466143,1756637442442,-153.83075818,0.00017831,2]
[382466145,1756637442451,-480.0,0.00017831,2]
[382466148,1756637442459,-480.0,0.00017831,2]
[382466150,1756637442469,-480.0,0.00017831,2]
[382466152,1756637442478,-566.18,0.00017831,2]
[382466154,1756637442487,-480.0,0.00017831,2]
[382466156,1756637442497,-480.0,0.00017831,2]
[382466158,1756637442507,-480.0,0.00017831,2]
[382466160,1756637442516,-480.0,0.00017831,2]
[382466162,1756637442525,-1302.91,0.00017831,2]
[382466164,1756637442535,-480.0,0.00017831,2]
[382466166,1756637442545,-618.63,0.00017831,2]
[382466168,1756637442558,-480.0,0.00017831,2]
[382466170,1756637442568,-4487.4,0.00017831,2]
[382466172,1756637442577,-175.10694815,0.00017831,2]
[382466174,1756637442586,-607.24,0.00017831,2]
[382466176,1756637442596,-1120.47,0.00017831,2]
[382466178,1756637442605,-1550.77,0.00017831,2]
[382466180,1756637442615,-480.0,0.00017831,2]
[382466182,1756637442625,-480.0,0.00017831,2]
[382466184,1756637442634,-480.0,0.00017831,2]
[382466186,1756637442644,-480.0,0.00017831,2]
[382466188,1756637442653,-368.79773215,0.00017831,2]
[382466578,1756637446757,-480.0,0.00017729,2]
[382466580,1756637446769,-354.96502929,0.0001773,2]
[382466583,1756637446784,-190.27497071,0.0001773,2]
[382466585,1756637446796,-922.14118273,0.0001773,2]
[382467949,1756637640671,172.0,0.00017497,2]
[382467950,1756637655486,1972.61170457,0.00016705,2]
[382467951,1756637655508,653.83068253,0.00016705,2]
[382467952,1756637743802,629.46252035,0.00017102,2]
[382467953,1756637766141,573.5341742,0.0001668,2]
[382467954,1756637802383,650.664387,0.00013699,2]
[382467956,1756637845497,168.0,0.00017361,2]
[382467957,1756637850949,168.0,0.00017437,2]
[382467958,1756637855377,168.0,0.00017419,2]
[382467959,1756637940957,1000.0,0.0001663,2]
[382467960,1756637941327,-168.0,0.0001752,2]
[382467961,1756637941351,-24.96798441,0.00017522,2]
[382467962,1756637943622,-143.03201559,0.00017522,2]
[382467963,1756637943646,-15.90352911,0.0001762,2]
[382467964,1756637946418,-173.77494841,0.0001762,2]
[382467965,1756637948133,-110.32152248,0.0001762,2]
[382467966,1756637948154,-51.40515582,0.00017621,3]
[382467967,1756637950433,-186.75827418,0.00017621,3]
[382467968,1756637951941,348.62340928,0.000175,2]
[382467969,1756637954458,-203.83846135,0.00017621,3]
[382467970,1756637956957,-259.94499889,0.00017621,3]
[382467971,1756637959739,-194.1144467,0.00017621,3]
[382467972,1756637963565,-164.69517072,0.00017621,3]
[382467973,1756637989826,-187.18251958,0.00017621,3]
[382467974,1756637992160,-144.41097276,0.00017621,3]
[382467975,1756637992181,-32.60112869,0.00017621,3]
[382467976,1756637992985,-663.56887131,0.00017621,3]
[382467977,1756637993017,-348.09,0.00017621,3]
[382467978,1756637993047,-174.04,0.00017621,3]
[382467979,1756637993080,-522.15,0.00017621,3]
[382467980,1756637993108,-1200.0,0.00017629,2]
[382467981,1756637993136,-364.0,0.00017629,2]
[382467982,1756637993166,-998.40255591,0.0001763,2]
[382467983,1756637993192,-444.60979647,0.0001763,2]
[382467984,1756637993221,-70.28755262,0.0001763,2]
[382467985,1756637993266,-429.71244738,0.0001763,2]
[382467986,1756637993296,-500.0,0.0001763,2]
[382467987,1756637993325,-265.12462951,0.0001763,2]
[382467988,1756637993353,-480.0,0.0001763,2]
[382467989,1756637993382,-300.0,0.0001763,2]
[382467990,1756637993416,-300.0,0.0001763,2]
[382467991,1756637993449,-300.0,0.0001763,2]
[382467992,1756637993477,-500.0,0.0001763,2]
[382467993,1756637993506,-480.0,0.0001763,2]
[382467994,1756637993532,-388.33,0.0001763,2]
[382467995,1756637993560,-964.82584622,0.0001763,2]
[382467996,1756637993601,-184.02415378,0.0001763,2]
[382467997,1756637993628,-480.88289953,0.0001763,2]
[382467998,1756637993655,-480.0,0.0001763,2]
[382467999,1756637993682,-1466.85,0.0001763,2]
[382468000,1756637993712,-1515.02589338,0.0001763,2]
[382468001,1756637993833,-1746.44410662,0.0001763,2]
[382468002,1756637993861,-1498.7,0.0001763,2]
[382468003,1756637994087,-3798.07,0.0001763,2]
[382468004,1756637994115,-489.6535696,0.0001763,2]
[382468005,1756637994143,-480.0,0.0001763,2]
[382468006,1756637994298,-480.0,0.0001763,2]
[382468007,1756637994325,-480.0,0.0001763,2]
[382468008,1756637994354,-3385.0,0.0001763,2]
[382468009,1756637994501,-1310.01,0.0001763,2]
[382468010,1756637994528,-480.0,0.0001763,2]
[382468011,1756637994554,-705.58,0.0001763,2]
[382468012,1756637994581,-480.0,0.0001763,2]
[382468013,1756637994609,-480.0,0.0001763,2]
[382468014,1756637994636,-1269.12,0.0001763,2]
[382468015,1756637994664,-70.59,0.0001763,2]
[382468016,1756637994872,-409.41,0.0001763,2]
[382468017,1756637994902,-2048.95,0.0001763,2]
[382468018,1756637996106,-9029.02859036,0.00017631,2]
[382468019,1756637996141,-10000.01,0.00017631,2]
[382468021,1756638019247,5000.0,0.000175,2]
[382468022,1756638043457,5000.0,0.000175,2]
[382468023,1756638067205,0.01,0.000175,2]
[382468024,1756638067229,4999.99,0.000175,2]
[382468025,1756638090722,5000.0,0.000175,2]
[382468026,1756638113953,0.02,0.000175,2]
[382468027,1756638113977,4999.98,0.000175,2]
[382468028,1756638137714,5000.0,0.000175,2]
[382468029,1756638162213,0.03,0.000175,2]
[382468030,1756638162238,4999.97,0.000175,2]
[382468031,1756638182411,155.65542487,0.00017479,2]
[382468032,1756638187212,4844.38457513,0.000175,2]
[382468033,1756638187239,155.61542487,0.000175,2]
[382468034,1756638197783,-164.69517072,0.00017519,2]
[382468035,1756638197804,-9.32361947,0.00017529,2]
[382468036,1756638200023,-184.79082723,0.00017529,2]
[382468037,1756638211333,5000.0,0.000175,2]
[382468038,1756638216978,203.83846135,0.00017529,2]
[382468039,1756638219308,174.01879019,0.00017559,2]
[382468040,1756638235181,5000.0,0.000175,2]
[382468041,1756638258219,5000.0,0.000175,2]
[382468042,1756638267026,0.01,0.0001663,2]
[382468043,1756638267047,618.15159,0.0001663,2]
[382468044,1756638278454,2290.0,0.00017353,2]
[382468045,1756638281573,5000.0,0.000175,2]
[382468046,1756638287404,2091.85841,0.00017455,2]
[382468047,1756638287430,198.14159,0.00017455,2]
[382468048,1756638308207,5000.0,0.000175,2]
[382468049,1756638325985,178.5425626,0.00016763,2]
[382468050,1756638332172,4623.3258474,0.000175,2]
[382468051,1756638332195,376.6741526,0.000175,2]
[382468052,1756638356177,722.34,0.000175,2]
[382468053,1756638485256,401.75,0.00015984,2]
[382468054,1756638485543,316.4,0.00015984,2]
[382468055,1756638485871,316.4,0.00015984,2]
[382468056,1756638589528,250.0,0.00017345,2]
[382468067,1756638635284,1509.1848983,0.00017529,50]
[382468085,1756638638070,-177.62174492,0.00017529,2]
[382468086,1756638638079,-118.76593349,0.0001758,2]
[382468087,1756638638119,-58.85581141,0.0001758,2]
[382468088,1756638638128,-658.69,0.00017619,3]
[382468089,1756638638137,-300.0,0.00017619,2]
[382468090,1756638638146,-1200.0,0.00017619,2]
[382468091,1756638638155,-300.0,0.00017619,2]
[382468092,1756638638164,-878.23,0.0001762,3]
[382468093,1756638638173,-439.11,0.0001762,3]
[382468094,1756638638182,-219.56,0.0001762,3]
[382468095,1756638638191,-2618.2481025,0.0001762,2]
[382468096,1756638638200,-209.40437684,0.0001762,2]
[382468097,1756638638209,-500.0,0.0001762,2]
[382468098,1756638638218,-500.0,0.0001762,2]
[382468099,1756638638227,-500.0,0.0001762,2]
[382468100,1756638638236,-500.0,0.0001762,2]
[382468101,1756638638245,-500.0,0.0001762,2]
[382468102,1756638638253,-500.0,0.0001762,2]
[382468103,1756638638262,-500.0,0.0001762,2]
[382468104,1756638638271,-500.0,0.0001762,2]
[382468105,1756638638280,-151.0,0.0001762,2]
[382468106,1756638638289,-500.0,0.0001762,2]
[382468107,1756638638297,-151.0,0.0001762,2]
[382468108,1756638638306,-500.0,0.0001762,2]
[382468109,1756638638315,-151.0,0.0001762,2]
[382468110,1756638638324,-500.0,0.0001762,2]
[382468111,1756638638333,-151.0,0.0001762,2]
[382468112,1756638638341,-519.72023464,0.0001762,2]
[382468113,1756638638350,-151.0,0.0001762,2]
[382468114,1756638638359,-151.0,0.0001762,2]
[382468115,1756638638368,-151.0,0.0001762,2]
[382468117,1756638638378,-151.0,0.0001762,2]
[382468119,1756638638387,-151.0,0.0001762,2]
[382468121,1756638638396,-151.0,0.0001762,2]
[382468123,1756638638406,-151.0,0.0001762,2]
[382468125,1756638638416,-480.0,0.00017627,2]
[382468127,1756638638425,-1100.98,0.00017627,2]
[382468129,1756638638435,-480.0,0.00017627,2]
[382468131,1756638638444,-1405.73,0.00017627,2]
[382468133,1756638638453,-3273.95,0.00017627,2]
[382468135,1756638638462,-1504.12,0.00017627,2]
[382468137,1756638638472,-3811.81,0.00017627,2]
[382468139,1756638638481,-1377.53,0.00017627,2]
[382468141,1756638638491,-480.0,0.00017627,2]
[382468144,1756638638502,-480.0,0.00017627,2]
[382468146,1756638638512,-480.0,0.00017627,2]
[382468148,1756638638521,-480.0,0.00017628,2]
[382468150,1756638638531,-480.0,0.00017628,2]
[382468152,1756638638540,-480.0,0.00017628,2]
[382468154,1756638638549,-4499.38,0.00017628,2]
[382468156,1756638638559,-480.0,0.00017628,2]
[382468158,1756638638568,-676.18,0.00017628,2]
[382468160,1756638638577,-1216.24,0.00017628,2]
[382468162,1756638638587,-480.0,0.00017628,2]
[382468164,1756638638596,-480.0,0.00017628,2]
[382468166,1756638638605,-1570.05,0.00017628,2]
[382468168,1756638638614,-1963.57,0.00017628,2]
[382468170,1756638638623,-1068.3,0.00017628,2]
[382468172,1756638638632,-1598.4,0.00017628,2]
[382468173,1756638638641,-700.37,0.00017628,2]
[382468175,1756638638650,-484.04,0.00017628,2]
[382468177,1756638638659,-1552.87,0.00017628,2]
[382468179,1756638638668,-311.22685753,0.00017628,2]
[382468181,1756638638678,-6508.66,0.00017628,2]
[382468183,1756638638691,-480.0,0.00017628,2]
[382468185,1756638638700,-1612.64,0.00017628,2]
[382468187,1756638638709,-777.08,0.00017628,2]
[382468189,1756638638718,-5203.96,0.00017628,2]
[382468191,1756638638728,-571.71987851,0.00017628,2]
[382468193,1756638638737,-480.0,0.00017628,2]
[382468195,1756638638745,-3156.11,0.00017628,2]
[382468197,1756638638755,-480.0,0.00017628,2]
[382468199,1756638638763,-4374.32,0.00017628,2]
[382468201,1756638638773,-480.0,0.00017628,2]
[382468203,1756638638782,-621.02,0.00017628,2]
[382468205,1756638638791,-1395.91,0.00017628,2]
[382468207,1756638638802,-480.0,0.00017628,2]
[382468209,1756638638811,-1785.56,0.00017628,2]
[382468211,1756638638821,-480.0,0.00017629,2]
[382468213,1756638638830,-705.65,0.00017629,2]
[382468215,1756638638839,-768.21,0.00017629,2]
[382468217,1756638638848,-1654.79,0.00017629,2]
[382468219,1756638638858,-481.56714841,0.00017629,2]
[382468221,1756638638867,-480.0,0.00017629,2]
[382468223,1756638638876,-481.89069885,0.00017629,2]
[382468225,1756638638885,-481.62952519,0.00017629,2]
[382468227,1756638638894,-480.0,0.00017629,2]
[382468229,1756638638905,-480.0,0.00017629,2]
[382468230,1756638638914,-480.0,0.00017629,2]
[382468232,1756638638923,-482.06146992,0.00017629,2]
[382468234,1756638638933,-491.40620681,0.00017629,2]
[382468236,1756638638942,-480.0,0.00017629,2]
[382468238,1756638638956,-480.0,0.00017629,2]
[382468240,1756638638966,-574.16,0.00017629,2]
[382468242,1756638638975,-483.00033591,0.00017629,2]
[382468244,1756638638985,-480.0,0.00017629,2]
[382468246,1756638638994,-480.0,0.00017629,2]
[382468248,1756638639004,-480.0,0.00017629,2]
[382468250,1756638639013,-480.0,0.00017629,2]
[382468252,1756638639024,-718.71,0.00017629,2]
[382468254,1756638639033,-480.0,0.00017629,2]
[382468256,1756638639044,-571.58,0.00017629,2]
[382468258,1756638639053,-829.2,0.00017629,2]
[382468260,1756638639063,-480.0,0.00017629,2]
[382468262,1756638639072,-480.0,0.00017629,2]
[382468264,1756638639082,-480.0,0.00017629,2]
[382468266,1756638639092,-480.0,0.00017629,2]
[382468268,1756638639100,-480.0,0.00017629,2]
[382468270,1756638639110,-475.0,0.00017629,2]
[382468272,1756638639119,-610.71,0.00017629,2]
[382468274,1756638639129,-1194.17,0.00017629,2]
[382468276,1756638639139,-871.46,0.00017629,2]
[382468278,1756638639148,-480.0,0.00017629,2]
[382468280,1756638639157,-480.0,0.00017629,2]
[382468282,1756638639167,-248.91033617,0.00017629,2]
[382468284,1756638639176,-480.0,0.00017629,2]
[382468286,1756638639186,-480.0,0.00017629,2]
[382468288,1756638639195,-480.0,0.00017629,2]
[382468290,1756638639206,-480.0,0.00017629,2]
[382468292,1756638639218,-480.0,0.00017629,2]
[382468294,1756638639227,-480.0,0.00017629,2]
[382468296,1756638639237,-549.82,0.00017629,2]
[382468298,1756638639247,-480.0,0.00017629,2]
[382468300,1756638639256,-480.0,0.00017629,2]
[382468302,1756638639265,-1032.08,0.00017629,2]
[382468303,1756638639281,-482.32,0.00017629,2]
[382468306,1756638639292,-480.0,0.00017629,2]
[382468308,1756638639301,-957.25,0.00017629,2]
[382468309,1756638639310,-480.0,0.00017629,2]
[382468312,1756638639320,-1278.6,0.00017629,2]
[382468313,1756638639329,-480.0,0.00017629,2]
[382468315,1756638639339,-480.0,0.00017629,2]
[382468317,1756638639348,-793.35,0.00017629,2]
[382468319,1756638639358,-480.0,0.00017629,2]
[382468321,1756638639367,-480.0,0.00017629,2]
[382468323,1756638639377,-480.0,0.00017629,2]
[382468325,1756638639386,-494.34,0.00017629,2]
[382468327,1756638639395,-1247.13,0.00017629,2]
[382468329,1756638639407,-480.0,0.00017629,2]
[382468331,1756638639417,-480.0,0.00017629,2]
[382468333,1756638639426,-480.0,0.00017629,2]
[382468335,1756638639435,-480.0,0.00017629,2]
[382468337,1756638639445,-582.49111764,0.00017629,2]
[382468339,1756638639455,-480.0,0.00017629,2]
[382468341,1756638639465,-526.81,0.00017629,2]
[382468343,1756638639475,-480.0,0.00017629,2]
[382468345,1756638639485,-480.0,0.00017629,2]
[382468347,1756638639494,-480.0,0.00017629,2]
[382468349,1756638639504,-456.21474337,0.00017629,2]
[382468351,1756638639514,-481.13981514,0.00017629,2]
[382468353,1756638639523,-1313.76,0.00017629,2]
[382468355,1756638639534,-480.0,0.00017629,2]
[382468357,1756638639543,-569.85,0.00017629,2]
[382468359,1756638639553,-1758.62,0.00017629,2]
[382468361,1756638639562,-480.0,0.00017629,2]
[382468363,1756638639572,-899.63,0.00017629,2]
[382468365,1756638639581,-551.65,0.00017629,2]
[382468367,1756638639591,-1326.69,0.00017629,2]
[382468369,1756638639600,-480.0,0.00017629,2]
[382468371,1756638639609,-528.09,0.00017629,2]
[382468373,1756638639619,-480.0,0.00017629,2]
[382468375,1756638639628,-480.0,0.00017629,2]
[382468377,1756638639637,-581.79,0.00017629,2]
[382468379,1756638639646,-500.0,0.00017629,2]
[382468381,1756638639655,-480.0,0.00017629,2]
[382468383,1756638639664,-500.0,0.00017629,2]
[382468385,1756638639674,-151.0,0.00017629,2]
[382468387,1756638639683,-151.0,0.00017629,2]
[382468389,1756638639692,-480.0,0.00017629,2]
[382468391,1756638639701,-151.61138015,0.00017629,2]
[382468392,1756638639711,-154.81963238,0.00017629,2]
[382468394,1756638639721,-500.0,0.00017629,2]
[382468396,1756638639730,-2457.6,0.00017629,2]
[382468398,1756638639739,-151.0,0.00017629,2]
[382468400,1756638639749,-1126.3,0.00017629,2]
[382468402,1756638639758,-151.0,0.00017629,2]
[382468404,1756638639767,-1542.0,0.00017629,2]
[382468406,1756638639776,-500.0,0.00017629,2]
[382468408,1756638639786,-201.51520989,0.00017629,2]
[382468410,1756638639795,-1282.96,0.00017629,2]
[382468412,1756638639805,-2156.65,0.00017629,2]
[382468414,1756638639814,-151.0,0.00017629,2]
[382468416,1756638639824,-480.0,0.00017629,2]
[382468418,1756638639833,-151.0,0.00017629,2]
[382468420,1756638639844,-151.00466912,0.00017629,2]
[382468422,1756638639853,-2204.94,0.00017629,2]
[382468424,1756638639863,-272.23210294,0.00017629,2]
[382468426,1756638639873,-151.0,0.00017629,2]
[382468428,1756638639882,-151.0,0.00017629,2]
[382468430,1756638639892,-151.0,0.00017629,2]
[382468432,1756638639902,-500.0,0.00017629,2]
[382468434,1756638639912,-500.0,0.00017629,2]
[382468436,1756638639922,-1303.78,0.00017629,2]
[382468438,1756638639931,-2823.29,0.00017629,2]
[382468440,1756638639940,-500.0,0.00017629,2]
[382468442,1756638639953,-480.0,0.00017629,2]
[382468444,1756638639962,-961.83,0.00017629,2]
[382468446,1756638639971,-1585.47,0.00017629,2]
[382468448,1756638639980,-480.0,0.00017629,2]
[382468450,1756638639991,-480.0,0.00017629,2]
[382468452,1756638640001,-480.0,0.00017629,2]
[382468454,1756638640010,-480.0,0.00017629,2]
[382468456,1756638640019,-1603.07,0.00017629,2]
[382468457,1756638640030,-480.0,0.00017629,2]
[382468460,1756638640040,-1317.44,0.00017629,2]
[382468461,1756638640050,-480.0,0.00017629,2]
[382468463,1756638640059,-480.0,0.00017629,2]
[382468465,1756638640068,-151.0,0.00017629,2]
[382468467,1756638640077,-151.0,0.00017629,2]
[382468469,1756638640087,-480.0,0.00017629,2]
[382468471,1756638640096,-179.45001036,0.00017629,2]
[382468473,1756638640106,-500.0,0.00017629,2]
[382468475,1756638640116,-480.0,0.00017629,2]
[382468477,1756638640125,-500.0,0.00017629,2]
[382468479,1756638640134,-875.66,0.00017629,2]
[382468481,1756638640143,-495.7,0.00017629,2]
[382468483,1756638640152,-480.0,0.00017629,2]
[382468485,1756638640161,-970.16,0.00017629,2]
[382468487,1756638640171,-480.0,0.00017629,2]
[382468489,1756638640181,-480.0,0.00017629,2]
[382468491,1756638640190,-480.0,0.00017629,2]
[382468493,1756638640200,-480.0,0.00017629,2]
[382468495,1756638640210,-2047.87,0.00017629,2]
[382468497,1756638640219,-1843.78,0.00017629,2]
[382468499,1756638640229,-1636.71,0.00017629,2]
[382468501,1756638640239,-887.38,0.00017629,2]
[382468503,1756638640248,-480.0,0.00017629,2]
[382468506,1756638640258,-480.0,0.00017629,2]
[382468508,1756638640267,-506.66,0.00017629,2]
[382468510,1756638640276,-554.55,0.00017629,2]
[382468512,1756638640286,-480.0,0.00017629,2]
[382468514,1756638640295,-480.982218,0.00017629,2]
[382468516,1756638640305,-665.04,0.00017629,2]
[382468518,1756638640314,-504.47,0.00017629,2]
[382468520,1756638640324,-480.0,0.00017629,2]
[382468522,1756638640333,-1959.04,0.00017629,2]
[382468524,1756638640342,-480.0,0.00017629,2]
[382468526,1756638640352,-480.0,0.00017629,2]
[382468528,1756638640361,-480.0,0.00017629,2]
[382468530,1756638640371,-906.98,0.00017629,2]
[382468532,1756638640380,-480.0,0.00017629,2]
[382468534,1756638640390,-480.0,0.00017629,2]
[382468536,1756638640399,-566.36,0.00017629,2]
[382468538,1756638640408,-480.0,0.00017629,2]
[382468540,1756638640418,-26802.88948515,0.0001763,2]
[382468542,1756638640428,-480.0,0.0001763,2]
[382468544,1756638640437,-480.0,0.0001763,2]
[382468546,1756638640447,-480.95599647,0.0001763,2]
[382468548,1756638640456,-1053.87,0.0001763,2]
[382468550,1756638640466,-951.71,0.0001763,2]
[382468552,1756638640476,-2834.99,0.0001763,2]
[382468554,1756638640486,-1336.81,0.0001763,2]
[382468556,1756638640496,-1733.31,0.0001763,2]
[382468558,1756638640505,-1802.98,0.0001763,2]
[382468560,1756638640515,-1000.0,0.0001763,2]
[382468562,1756638640524,-1000.0,0.0001763,2]